Cogmind - Beta 11 X5 @@@ ROGUE MODE // 2021.08.25 @ 20:57:45 Player: Timo Result: Destroyed by Y-45 Defender with Beam Rifle Performance ------------- Evolutions (2) 1000 Regions Visited (7) 1400 Robots Destroyed (33) 165 Value Destroyed (980) 980 Prototype IDs (1) 20 Alien Tech Used (0) 0 Bonus (8) 8 TOTAL SCORE: 3573 Bonus ------- High Alert Combat Kills 8 Cogmind --------- Core Integrity 0/550 Matter 284/300 Energy 95/100 System Corruption 0% Temperature Cool (9) Movement Rolling (100) Location -8/Materials Parts ------- > --- POWER (1) -------- (None) > --- PROPULSION (3) --- Light Treads Armored Huge Wheel > --- UTILITY (5) ------ Advanced Visual Processing Unit Target Analyzer Improved Utility Shielding Weapon Shielding Makeshift Hacking Suite > --- WEAPON (2) ------- Heavy Assault Rifle Improved Assault Rifle > --- INVENTORY (5) ---- Light Treads Peak State ------------ > --- POWER ------------ Improved Ion Engine > --- PROPULSION ------- Carbon-fiber Leg Armored Huge Wheel > --- UTILITY ---------- Advanced Visual Processing Unit Target Analyzer Improved Utility Shielding Makeshift Hacking Suite > --- WEAPON ----------- Flail Flail > --- INVENTORY -------- Light Treads Weapon Shielding Heavy Assault Rifle Improved Assault Rifle [Rating: 30] Favorites ----------- Power Improved Ion Engine Engine Improved Ion Engine Propulsion Aluminum Leg Treads Light Treads Leg Aluminum Leg Wheel Armored Huge Wheel Utility Makeshift Hacking Suite Device Sensor Array Storage Small Storage Unit Processor Advanced Visual Processing Unit Hackware Makeshift Hacking Suite Protection Light Armor Plating Weapon Flail Ballistic Gun Improved Assault Rifle Launcher Rocket Launcher Impact Weapon Flail Build | -11 -10 -10 -9 -9 -9 -8 -8 ------- Run | Scr Mat Min Mat Min Exi Min Mat Slots Evolved 4 | . . . 2 . . . 2 Power . | . . . . . . . . Propulsion 1 | . . . . . . . 1 Utility 3 | . . . 2 . . . 1 Weapon . | . . . . . . . . Parts Attached 41 | . 1 3 11 . 2 7 17 Power 5 | . . 1 1 . . . 3 Engine 5 | . . 1 1 . . . 3 Core . | . . . . . . . . Reactor . | . . . . . . . . Propulsion 10 | . . 1 . . . 2 7 Treads 3 | . . . . . . . 3 Leg 5 | . . 1 . . . 2 2 Wheel 2 | . . . . . . . 2 Hover . | . . . . . . . . Flight . | . . . . . . . . Utility 13 | . . 1 5 . 2 2 3 Device 2 | . . 1 1 . . . . Storage 1 | . . . . . 1 . . Processor 2 | . . . . . . 1 1 Hackware 1 | . . . . . 1 . . Protection 7 | . . . 4 . . 1 2 Artifact . | . . . . . . . . Weapon 13 | . 1 . 5 . . 3 4 Energy Gun . | . . . . . . . . Energy Cannon . | . . . . . . . . Ballistic Gun 7 | . 1 . 3 . . 1 2 Ballistic Cannon . | . . . . . . . . Launcher 4 | . . . 1 . . 2 1 Special Weapon . | . . . . . . . . Impact Weapon 2 | . . . 1 . . . 1 Slashing Weapon . | . . . . . . . . Piercing Weapon . | . . . . . . . . Special Melee Weapon . | . . . . . . . . Unidentified Prototypes 1 | . . . 1 . . . . Parts Lost 20 | . 1 2 3 . . 2 12 Power 4 | . . 1 . . . . 3 Propulsion 8 | . . 1 . . . 1 6 Utility 2 | . . . 1 . . 1 . Weapon 6 | . 1 . 2 . . . 3 Highest Loss Streak 7 | . 1 2 3 . . 2 7 Average Slot Usage (%) 84 | . 84 97 73 77 85 87 80 Engine 11 | . 14 13 11 11 11 11 6 Leg 22 | . 28 27 22 22 22 22 14 Device 1 | . . 12 4 . . . . Storage 10 | . 14 14 11 11 11 11 4 Processor 2 | . . . . . . 5 13 Hackware 6 | . . . . . 8 11 9 Protection 7 | . . . 3 11 11 9 14 Ballistic Gun 12 | . 27 28 17 11 11 6 . Impact Weapon 7 | . . . 2 11 11 11 9 Naked Turns . | . . . . . . . . Heaviest Build 27 | 13 14 15 24 20 25 26 27 Greatest Support 35 | 20 20 20 20 20 20 25 35 Greatest Overweight (x) 3 | . . 1 1 . 1 1 3 Average Overweight (x) . | . . . . . . . . Largest Inventory Capacity 10 | . 8 8 8 8 10 10 10 Average Capacity 8 | . 8 8 8 8 8 10 7 Most Carried 10 | . 7 7 8 8 9 10 9 Average Carried 7 | . 5 6 7 8 8 9 5 Final Capacity 10 | 8 8 8 8 8 10 10 5 Final Carried 10 | 6 5 7 8 8 9 10 1 Class Distribution -------------------- 81% | Mutant 18% | Commander-Mutant Dominant Class ---------------- Mutant | -10/Materials Mutant | -10/Mines Mutant | -9/Materials Mutant | -9/Mines Mutant | -9/Exiles Mutant | -8/Mines Mutant | -8/Materials Resources | -11 -10 -10 -9 -9 -9 -8 -8 ----------- Run | Scr Mat Min Mat Min Exi Min Mat Matter Collected 887 | 181 151 68 167 . . 161 159 Remotely . | . . . . . . . . Salvage Created 1215 | . 263 128 190 . . 348 286 Parts 73 | . 16 9 18 . . 5 25 Haulers Intercepted 1 | . . . . . . . 1 Recyclers Shooed 1 | . . . . . . 1 . Parts Field Recycled . | . . . . . . . . Retrieved Matter . | . . . . . . . . Parts Self-Destructed . | . . . . . . . . Prevented . | . . . . . . . . Kills | -11 -10 -10 -9 -9 -9 -8 -8 ------- Run | Scr Mat Min Mat Min Exi Min Mat Combat Hostiles Destroyed 29 | . 8 5 4 . . 5 7 Melee 3 | . . . 1 . . . 2 Guns 16 | . 8 5 2 . . . 1 AOE 9 | . . . 1 . . 4 4 Classes Destroyed 7 | . 2 . 1 . . 2 2 Hauler 1 | . . . . . . . 1 Recycler 2 | . . . . . . 2 . Operator 1 | . . . . . . . 1 Swarmer 10 | . 3 3 . . . . 4 Grunt 11 | . 5 2 1 . . 3 . Sentry 5 | . . . 3 . . . 2 Hunter 3 | . . . . . . 2 1 Best Kill Streak 4 | . 4 3 1 . . 3 4 Combat Bots Only 4 | . 4 3 1 . . 3 4 Max Kills in Single Turn 3 | . 1 2 1 . . 2 3 Gunslinging 1 | . . 1 . . . . . Exploded 3 | . . . 1 . . 2 3 Melee 1 | . . . 1 . . . 1 Uniques/NPCs Destroyed . | . . . . . . . . Combat | -11 -10 -10 -9 -9 -9 -8 -8 -------- Run | Scr Mat Min Mat Min Exi Min Mat Damage Taken 3426 | . 372 214 265 . . 398 2177 Core 777 | . 66 7 105 . . 46 553 Absorbed by Shields . | . . . . . . . . Core Remaining (%) 77 | 100 . 70 . . . 62 . Volleys Fired 60 | . 30 8 11 . . 6 5 Largest 2 | . 2 2 2 . . 1 2 Hottest 46 | . 40 40 43 . . 33 46 Shots Fired 107 | . 59 16 19 . . 6 7 Gun 96 | . 59 16 17 . . . 4 Cannon . | . . . . . . . . Launcher 11 | . . . 2 . . 6 3 Special . | . . . . . . . . Kinetic 96 | . 59 16 17 . . . 4 Thermal . | . . . . . . . . Explosive 11 | . . . 2 . . 6 3 Electromagnetic . | . . . . . . . . Robot Hit Streak 17 | . 17 3 5 . . 2 1 Robot Miss Streak 4 | . 4 3 2 . . 2 3 Penetration Max . | . . . . . . . . Secondary Targets 4 | . 2 2 . . . . . Max Gunslinging Chain 1 | . 1 1 . . . . . Shots Hit Robots 103 | . 42 7 13 . . 13 28 Core Hits 49 | . 14 7 7 . . 11 10 Critical Kills 1 | . . 1 . . . . . Critical Parts Destroyed 1 | . . . . . . 1 . Critical Strikes 2 | . . 1 . . . 1 . Destroy 1 | . . 1 . . . . . Smash 1 | . . . . . . 1 . Melee Attacks 52 | . . . 2 4 . 12 34 Impact 52 | . . . 2 4 . 12 34 Slashing . | . . . . . . . . Piercing . | . . . . . . . . Sneak Attacks 7 | . . . . . . 5 2 Combat Hostiles . | . . . . . . . . Follow-up Attacks 1 | . . . . . . . 1 Damage Inflicted 2346 | . 454 111 199 . . 784 798 Guns 735 | . 448 108 137 . . . 42 Cannons . | . . . . . . . . Explosions 581 | . . . 36 . . 367 178 Melee 1021 | . . . 26 . . 417 578 Ramming 9 | . 6 3 . . . . . Kinetic 735 | . 448 108 137 . . . 42 Thermal . | . . . . . . . . Explosive 581 | . . . 36 . . 367 178 Electromagnetic . | . . . . . . . . Impact 1021 | . . . 26 . . 417 578 Slashing . | . . . . . . . . Piercing . | . . . . . . . . Highest Corruption . | . . . . . . . . Average Corruption . | . . . . . . . . Corruption Purged . | . . . . . . . . Overload Shots . | . . . . . . . . Overflow Damage 148 | . . . . . . 99 49 Projectiles . | . . . . . . . . Explosions . | . . . . . . . . Melee 148 | . . . . . . 99 49 Knockbacks 3 | . . . . . . 3 . Impact 2 | . . . . . . 2 . Kinetic . | . . . . . . . . Secondary 1 | . . . . . . 1 . Self-Inflicted Damage 20 | . . . . . . . 20 Shots 2 | . . . . . . . 2 Rammed . | . . . . . . . . Targets Rammed 2 | . 1 1 . . . . . Kicked 2 | . 1 1 . . . . . Crushed . | . . . . . . . . Highest Temperature 21 | . 20 21 21 . . 3 10 Average Temperature 7 | . 7 11 15 . . 2 5 Received Heat Transfer 1344 | . 192 78 102 . . 144 828 Siege Activations . | . . . . . . . . Robots Corrupted . | . . . . . . . . Combat Hostiles . | . . . . . . . . Parts Fried 3 | . . . . . . 3 . Impact Corruptions 8 | . . . . . . 6 2 Robots Melted . | . . . . . . . . Combat Hostiles . | . . . . . . . . Parts Melted . | . . . . . . . . Heat Transferred . | . . . . . . . . Parts Sabotaged . | . . . . . . . . Parts Stolen . | . . . . . . . . Parts Stripped . | . . . . . . . . Power Chain Reactions . | . . . . . . . . Missiles Intercepted . | . . . . . . . . Alert | -11 -10 -10 -9 -9 -9 -8 -8 ------- Run | Scr Mat Min Mat Min Exi Min Mat Peak Influence 415 | . 415 261 228 28 . 126 218 Initial 161 | . . 161 101 28 . . . Average 127 | . 172 237 140 28 . 63 146 Maximum Alert Level 2 | . 2 1 1 . . . 1 Low Security (%) 74 | . 57 2 77 100 . 100 78 Level 1 25 | . 37 97 22 . . . 21 Level 2 . | . 5 . . . . . . Level 3 . | . . . . . . . . Level 4 . | . . . . . . . . Level 5 . | . . . . . . . . High Security . | . . . . . . . . Max Security . | . . . . . . . . Squads Dispatched 4 | . 2 . 1 . . . 1 Investigation . | . . . . . . . . Extermination . | . . . . . . . . Reinforcement 4 | . 2 . 1 . . . 1 Assault . | . . . . . . . . Garrison . | . . . . . . . . Intercept . | . . . . . . . . Construction Impeded . | . . . . . . . . Haulers Reinforced . | . . . . . . . . Cargo Convoy Interrupts . | . . . . . . . . Stealth | -11 -10 -10 -9 -9 -9 -8 -8 --------- Run | Scr Mat Min Mat Min Exi Min Mat Distress Signals 6 | . 4 . 1 . . . 1 Communications Jammed . | . . . . . . . . Distress Signals . | . . . . . . . . Times Spotted 59 | . 20 8 10 . . 8 13 Peak Tracking Total 9 | . 9 5 4 . . 3 4 Tactical Retreats 5 | . 3 1 . . . 1 . Traps | -11 -10 -10 -9 -9 -9 -8 -8 ------- Run | Scr Mat Min Mat Min Exi Min Mat Traps Triggered . | . . . . . . . . Indirectly . | . . . . . . . . Trap Hack Attempts . | . . . . . . . . Triggered . | . . . . . . . . Disarmed . | . . . . . . . . Reprogrammed . | . . . . . . . . Reused . | . . . . . . . . Traps Extracted . | . . . . . . . . Installed . | . . . . . . . . Triggered . | . . . . . . . . Machines | -11 -10 -10 -9 -9 -9 -8 -8 ---------- Run | Scr Mat Min Mat Min Exi Min Mat Machines Disabled 1 | . . . 1 . . . . Max in Single Turn 1 | . . . 1 . . . . Machines Sabotaged . | . . . . . . . . Garrisons Compromised . | . . . . . . . . Overloaded Fab Kills . | . . . . . . . . Fab Network Shutdowns . | . . . . . . . . Hacking | -11 -10 -10 -9 -9 -9 -8 -8 --------- Run | Scr Mat Min Mat Min Exi Min Mat Machines Accessed 8 | . 2 . 3 1 1 . 1 Terminals 6 | . 2 . 2 1 . . 1 Fabricators . | . . . . . . . . Repair Stations . | . . . . . . . . Recycling Units . | . . . . . . . . Scanalyzers 1 | . . . 1 . . . . Garrison Access . | . . . . . . . . Total Hacks 20 | . 4 . 10 1 3 . 2 Successful 11 | . 1 . 5 1 3 . 1 Failed 9 | . 3 . 5 . . . 1 Catastrophic 2 | . 1 . . . . . 1 Database Lockouts . | . . . . . . . . Manual 3 | . 1 . 2 . . . . Terminals 12 | . 4 . 5 1 . . 2 Fabricators . | . . . . . . . . Repair Stations . | . . . . . . . . Recycling Units . | . . . . . . . . Scanalyzers 5 | . . . 5 . . . . Garrison Access . | . . . . . . . . Terminal Hacks 6 | . 1 . . 1 3 . 1 Record 3 | . . . . . 3 . . Recall Reinforcements 1 | . . . . . . . 1 Zone Layout 2 | . 1 . . 1 . . . Fabricator Hacks . | . . . . . . . . Repair Station Hacks . | . . . . . . . . Recycling Unit Hacks . | . . . . . . . . Scanalyzer 4 | . . . 4 . . . . Insert Component 2 | . . . 2 . . . . Analyze 2 | . . . 2 . . . . Garrison Access Hacks . | . . . . . . . . Unauthorized Hacks 1 | . . . 1 . . . . Terminals 1 | . . . 1 . . . . Disrupt 1 | . . . 1 . . . . Fabricators . | . . . . . . . . Repair Stations . | . . . . . . . . Recycling Units . | . . . . . . . . Scanalyzers . | . . . . . . . . Garrison Access . | . . . . . . . . Data Cores Recovered . | . . . . . . . . Used . | . . . . . . . . Hacking Detections 5 | . 2 . 2 . . . 1 Full Trace Events . | . . . . . . . . Feedback Events . | . . . . . . . . Feedback Blocked . | . . . . . . . . Robot Schematics Acquired . | . . . . . . . . Robots Built . | . . . . . . . . Matter . | . . . . . . . . Time . | . . . . . . . . Total Robot Build Rating . | . . . . . . . . Part Schematics Acquired 2 | . . . 2 . . . . Parts Built . | . . . . . . . . Matter . | . . . . . . . . Time . | . . . . . . . . Total Part Build Rating . | . . . . . . . . Parts Repaired . | . . . . . . . . Time . | . . . . . . . . Parts Recycled . | . . . . . . . . Recycled Matter . | . . . . . . . . Retrieved Matter . | . . . . . . . . Retrieved Components . | . . . . . . . . Parts Scanalyzed 2 | . . . 2 . . . . Part Schematics Acquired 2 | . . . 2 . . . . Parts Damaged . | . . . . . . . . Bothacking | -11 -10 -10 -9 -9 -9 -8 -8 ------------ Run | Scr Mat Min Mat Min Exi Min Mat Used RIF Installer . | . . . . . . . . Robots Hacked . | . . . . . . . . Non-combat . | . . . . . . . . Combat . | . . . . . . . . Robot Hacks Applied . | . . . . . . . . Relay Couplers Released . | . . . . . . . . Robots Rewired 4 | . . . . . 4 . . Allies Hacked . | . . . . . . . . Hacks Repelled . | . . . . . . . . Allies | -11 -10 -10 -9 -9 -9 -8 -8 -------- Run | Scr Mat Min Mat Min Exi Min Mat Total Allies 4 | . . . . . 4 . . Largest Group 4 | . . . . . 4 4 . Highest-Rated Group 45 | . . . . . 45 45 . Highest-Rated Ally 21 | . . . . . 21 21 . Total Orders . | . . . . . . . . Ally Attacks 6 | . . . . . . 6 . Total Damage 69 | . . . . . . 69 . Kills . | . . . . . . . . Allies Corrupted . | . . . . . . . . Allies Melted . | . . . . . . . . Intel | -11 -10 -10 -9 -9 -9 -8 -8 ------- Run | Scr Mat Min Mat Min Exi Min Mat Robot Analysis Total . | . . . . . . . . Derelict Logs Recovered . | . . . . . . . . Drone Launches . | . . . . . . . . Drone Recoveries . | . . . . . . . . Exploration | -11 -10 -10 -9 -9 -9 -8 -8 ------------- Run | Scr Mat Min Mat Min Exi Min Mat Turns Passed 3487 | . 361 298 478 92 1029 837 392 Spaces Moved 2235 | 1 221 198 282 69 661 591 212 Core 24 | . . . . . . . 24 Treads . | . . . . . . . . Legs 2190 | 1 221 198 282 69 661 591 167 Wheels 21 | . . . . . . . 21 Hover . | . . . . . . . . Flight . | . . . . . . . . Fastest Speed 100 | 120 120 120 120 120 120 120 100 Average Speed 135 | 120 120 134 144 120 148 131 120 Slowest Speed 200 | 120 120 200 200 120 200 200 200 Overloaded Moves . | . . . . . . . . Propulsion Burnouts . | . . . . . . . . Robots Hopped . | . . . . . . . . Cave-ins Triggered . | . . . . . . . . Exploration Rate (%) 45 | 2 56 40 34 23 90 94 24 Regions Visited 7 Branch Regions 4 Pre-discovered Areas 1 | . . . . . 1 . . Known Exits Taken . | . . . . . . . . Unknown Exits Taken 7 | 1 1 1 1 1 1 1 . Scrap Searched 3 | . . 2 . . . 1 . Spaces Dug 10 | . . . . 1 . . 9 Terrain Destroyed 85 | . . . 11 1 . 51 22 Melee 1 | . . . . 1 . . . Projectile . | . . . . . . . . AOE 84 | . . . 11 . . 51 22 Terrain Rammed . | . . . . . . . . Walls Destroyed . | . . . . . . . . Machines Disabled . | . . . . . . . . Actions | -11 -10 -10 -9 -9 -9 -8 -8 --------- Run | Scr Mat Min Mat Min Exi Min Mat Total 2510 | . 263 213 333 72 710 629 290 Wait 43 | . 7 . 8 . 3 7 18 Move 2228 | . 220 197 281 68 660 590 212 Hop . | . . . . . . . . Pick Up 17 | . 2 4 7 . 1 2 1 Fast Attach 18 | . . 1 5 . 2 2 8 Attach 21 | . 1 2 5 . . 5 8 Detach 11 | . . . 5 . 1 4 1 Swap 2 | . . . 1 . . . 1 Drop 15 | . 2 . 8 . 1 1 3 Fire 60 | . 30 8 11 . . 6 5 Melee 51 | . . . 2 4 . 12 33 Ram . | . . . . . . . . Kick 2 | . 1 1 . . . . . Crush . | . . . . . . . . Escape Stasis . | . . . . . . . . Rewire 42 | . . . . . 42 . . Trap . | . . . . . . . . Miscellaneous . | . . . . . . . . Route ------- -11/Scrapyard -10/Materials (discovered 3 exits: *Mat x2 / [*Min]) -10/Mines -9/Materials -9/Mines -9/Exiles (discovered 2 exits: [*Min x2]) -8/Mines -8/Materials History --------- Turn | Location | Event 1 | -11/Scrapyard | Discovered new exit (range 0) 1 | -11/Scrapyard | Entered Materials 35 | -10/Materials | Discovered new exit (range 14) 145 | -10/Materials | Discovered new exit (range 4) 266 | -10/Materials | Discovered new exit (range 13) 313 | -10/Materials | Build established: Mutant 362 | -10/Materials | Entered Mines 473 | -10/Mines | Assembled infested the area 642 | -10/Mines | Discovered new exit (range 9) 660 | -10/Mines | Entered Materials 660 | -9/Materials | Evolved 2 slots: Utility x2 880 | -9/Materials | Lost 3 parts (1u2w) 1096 | -9/Materials | Discovered new exit (range 16) 1138 | -9/Materials | Entered Mines 1184 | -9/Mines | Discovered new exit (range 17) 1221 | -9/Mines | Met a Derelict bent on vengeance 1230 | -9/Mines | Entered Exiles 1230 | -9/Exiles | Found Exiles lab destroyed 1250 | -9/Exiles | Discovered new exit (range 15) 1357 | -9/Exiles | Learned location of Zion (-6) 1840 | -9/Exiles | Discovered new exit (range 14) 2057 | -9/Exiles | Build established: Commander-Mutant 2259 | -9/Exiles | Entered Mines 2259 | -8/Mines | Accompanied by 4 allies 2555 | -8/Mines | Discovered new exit (range 6) 2681 | -8/Mines | Build established: Mutant 3096 | -8/Mines | Entered Materials 3096 | -8/Materials | Evolved 2 slots: Propulsion x1, Utility x1 3325 | -8/Materials | Lost 4 parts (1p2n1w) 3429 | -8/Materials | Core integrity fell below 50% 3459 | -8/Materials | Core integrity fell below 20% 3488 | -8/Materials | Destroyed by Y-45 Defender with Beam Rifle Last Messages --------------- 03439_ Acquired Med. Treads. 03442_ Sneak attack on A-02 Transporter. 03442_ A-02 Transporter destroyed. 03444_ Arm. Huge Wheel destroyed. 03446_ Acquired Ion Engine. 03452_ Critical hit (Burn: +37). 03452_ Ion Engine destroyed. 03454_ Acquired Arm. Huge Wheel. 03462_ Med. Treads destroyed. 03471_ Critical hit (Burn: +37). 03472_ Flail destroyed. 03472_ R-06 Scavenger collects Prototype Energy Gun. 03475_ Y-45 Defender destroyed. 03475_ K-01 Serf collects debris. 03475_ R-06 Scavenger collects Heat Sink. 03478_ Acquired 51 matter. 03478_ K-01 Serf collects debris. 03478_ R-06 Scavenger collects Lgt. Treads. 03480_ Acquired Lgt. Treads. 03481_ R-06 Scavenger collects Heat Sink. Map ----- +----------------------------------------------------+ | ?????????????????????????????????????????????????? | | ?????????????????????????????????????????????????? | | ?????????????????????????????????????????????????? | | ?????????????????????????????????????????????????? | | ?????????????????????????????????????????????????? | | ?????????????????????????????????????????????????? | | ?????????????????????????????????????????????????? | | ?????????????????????????????????????????????????? | | ?????????????????????????????????????????????????? | | ?????????????????????????????????????????????????? | | ?????????????????????????????????????????????????? | | ?????????????????????????????????????????????????? | | ?????????????????????????????????????????????????? | | ?????????????????????????????????????????????????? | | ?????????????????????????????????????????????????? | | ???????????????????????????????????????????????? | | ????????????????????????????????????????????? | | ????????????????????????????????????????????? | | ????????????????????????########????????????? | | ????????????????????????#= ==]]#?????????????? | | ????????????????????????#=%[=]]#?????????????????? | | ????????????????????????#[[=[ #?????????????????? | | ???????????????????######## ########???????????? | | ??????????########## ! # = + = #???????????? | | ??????????? u kr = #% # #???????????? | | ???????????????????# "" @# [ # """ #???????????? | | ???????????????????# "T Y + """ #???????????? | | ???????????????????# "" # # """ #???????????? | | ???????????????????# # # #???????????? | | ???????????????????#### ### r######## ##????????? | | ??????????????????????##??# #? ] #????????? | | ??????????????????????????# # #????????? | | ??????????????????????????# # ! """ #????????? | | ??????????????????????????# + """ #????????? | | ??????????????????????????# # "" """ #????????? | | ??????????????????????????# # "T #????????? | | ??????????????????????????# #?"" ! [ #?????#### | | ??????????????????????????# #? #?????# | | ??????????????????????????# #??############## " | | ??????????????????????????# #?????????# # "" | | ??????????????????????????# ###########[ !=#="" | | ??????????????????????????# %[ % !!+%"" | | ??????????????????????????# ########## [#! " | | ??????????????????????????# #????????# # | | ?????????????????????????# #????????## ## | | ???????????????????????? #?????????# ##### | | ?????????????????????? ^ #?????????# #???? | | ???????????????????? #?????????# #???? | | ??????????????????? """ """ !#?????????# #???? | | ?????????????????"" """ """ #?????????# #???? | +----------------------------------------------------+ Best States ------------- Heat Dissipation 31 Energy Generation 15 Energy Capacity 265 Matter Stores 300 Matter Capacity 300 Sight Range 20 Robot Scan Range 14 Terrain Scan Density 10 ECM Strength 1 Armor Coverage 150 Utility Shielding 66 Weapon Shielding 33 Evasion (%) 55 Target Analysis 5 Offensive Hacking 11 Item Schematics ----------------- Hrd. Light Armor Plating | -9/Materials | Scanalyzed Imp. Utility Shielding | -9/Materials | Scanalyzed Robot Schematics ------------------ None Fabricated ------------ Nothing Alien Tech Used ----------------- None Achievements -------------- None Challenges ------------ None Game ------ Seed ProtonOverloadCanceller Manual? 0 Play Time 00:29:18 Cumulative 69.3 hours Start 2021.08.25 @ 20:29:56 End 2021.08.25 @ 20:57:45 Sessions 1 Manual Loads 0 Difficulty Rogue Special Mode None Game No. 56 Rogue 56 Adventurer 0 Explorer 0 Win Type - Total 0 Types 0/0/0/0/0/0/0/0/0 Lore% 39 Gallery% 50 Achievement% 32 Wizard Run 0 Options --------- ASCII 0 Keyboard 1 Movement Numpad Keybinds 0 Fullscreen 2 Font 18/SmallcapsGlow Map View 76x50 Tactical HUD 1 Map Filters NONE Filters NONE Steam 1 RUN: 9273325d-d334-455a-9dfc-2caea783c570